bitfinex/quotes_BTCUSD_20250421
["timestamp","ask_amount","ask_price","bid_price","bid_amount"]
[1745222588020,0.0125,87249.0,87219.0,0.14528]
[1745222588205,0.11944791,87248.0,87219.0,0.14528]
[1745222589195,0.0187,87247.0,87219.0,0.14528]
[1745222589392,0.11944791,87246.0,87219.0,0.14528]
[1745222589594,0.0187,87245.0,87219.0,0.09608]
[1745222589856,0.0187,87243.0,87219.0,0.09608]
[1745222590024,0.12596556,87242.0,87219.0,0.09608]
[1745222600926,0.12596556,87242.0,87212.0,0.43401258]
[1745222601129,0.12596556,87242.0,87213.0,0.21556791]
[1745222601653,0.0187,87243.0,87213.0,0.21556791]
[1745222601903,0.13814791,87243.0,87213.0,0.21556791]
[1745222604367,0.13814791,87243.0,87214.0,0.0495]
[1745222604576,0.13814791,87243.0,87215.0,0.11944791]
[1745222610652,0.13814791,87243.0,87216.0,0.34]
[1745222620338,0.13814791,87243.0,87217.0,0.0495]
[1745222623709,0.13814791,87243.0,87216.0,0.19772295]
[1745222624013,0.13814791,87243.0,87217.0,0.0481]
[1745222625216,0.13814791,87243.0,87218.0,0.00229272]
[1745222626928,0.13814791,87243.0,87219.0,0.0495]
[1745222627211,0.13814791,87243.0,87220.0,0.00229272]
[1745222630054,0.00229272,87242.0,87215.0,0.21552791]
[1745222630288,0.00229272,87242.0,87216.0,0.00229272]
[1745222632991,0.00229272,87242.0,87217.0,0.0982]
[1745222633191,0.00229272,87242.0,87218.0,0.00229272]
[1745222634829,0.0125,87253.0,87219.0,0.11944791]
[1745222634969,0.0125,87253.0,87221.0,0.0487]
[1745222635167,0.0125,87253.0,87222.0,0.12174029]
[1745222635570,0.09612,87267.0,87223.0,0.0982]
[1745222635775,0.09612,87267.0,87226.0,0.0487]
[1745222636112,0.09612,87267.0,87227.0,0.12174021]
[1745222636312,0.09612,87267.0,87227.0,0.13032904]
[1745222637894,0.0458,87259.0,87227.0,0.13032904]
[1745222638716,0.0458,87259.0,87229.0,0.0495]
[1745222638913,0.0458,87259.0,87231.0,0.0487]
[1745222639263,0.046645,87264.0,87233.0,0.0487]
[1745222639462,0.046645,87264.0,87234.0,0.1217401]
[1745222639666,0.046645,87264.0,87235.0,0.0487]
[1745222639871,0.046645,87264.0,87236.0,0.16894791]
[1745222640230,0.046645,87264.0,87237.0,0.0487]
[1745222640429,0.046645,87264.0,87238.0,0.11944791]
[1745222640629,0.04677473,87264.0,87239.0,0.34]
[1745222640835,0.04677473,87264.0,87240.0,0.11944791]
[1745222642768,0.04677473,87264.0,87241.0,0.34]
[1745222643123,0.00097473,87264.0,87244.0,0.0982]
[1745222643303,0.0008448,87265.0,87245.0,0.46173989]
[1745222643493,0.0008448,87265.0,87245.0,0.45957764]
[1745222643856,0.0008448,87268.0,87245.0,0.45957764]
[1745222644831,0.03963,87278.0,87247.0,0.0982]
[1745222645045,0.03963,87278.0,87246.0,0.3913042]
[1745222645046,0.14188,87288.0,87253.0,0.0982]
[1745222645268,0.14188,87288.0,87256.0,0.0487]
[1745222645393,0.14188,87288.0,87257.0,0.12173948]
[1745222646003,0.14188,87288.0,87259.0,0.0495]
[1745222646210,0.0458,87293.0,87261.0,0.0487]
[1745222646410,0.0458,87293.0,87254.0,0.09608]
[1745222646411,0.0458,87293.0,87263.0,0.0982]
[1745222646649,0.0458,87293.0,87264.0,0.12173926]
[1745222646876,0.0458,87293.0,87264.0,0.14126823]
[1745222647253,0.0458,87293.0,87264.0,0.13897688]
[1745222648027,0.0458,87293.0,87265.0,0.00229135]
[1745222648234,0.0458,87293.0,87266.0,0.11944791]
[1745222648430,0.0458,87293.0,87267.0,0.00229135]
[1745222648688,0.0458,87293.0,87268.0,0.11944791]
[1745222648879,0.0458,87293.0,87269.0,0.00229135]
[1745222649085,0.0458,87293.0,87270.0,0.11944791]
[1745222649296,0.30811159,87308.0,87272.0,0.0461]
[1745222649447,0.002,87309.0,87273.0,0.16554791]
[1745222649706,0.002,87309.0,87276.0,0.0461]
[1745222649912,0.002,87309.0,87278.0,0.0461]
[1745222650190,0.002,87309.0,87279.0,0.14735645]
[1745222650478,0.002,87309.0,87280.0,0.0461]
[1745222650685,0.00213587,87309.0,87281.0,0.12173891]
[1745222650890,0.00213587,87309.0,87283.0,0.0461]
[1745222651102,0.00213587,87309.0,87284.0,0.03019954]
[1745222652496,0.00213587,87309.0,87286.0,0.0465]
[1745222652654,0.00213587,87309.0,87287.0,0.002291]
[1745222653299,0.00213587,87309.0,87288.0,0.0461]
[1745222653479,0.00213587,87309.0,87289.0,0.002291]
[1745222656841,0.00213587,87309.0,87291.0,0.0461]
[1745222657019,0.00213587,87309.0,87292.0,0.11944791]
[1745222659332,0.00213587,87309.0,87292.0,0.12789188]
[1745222661676,0.00213587,87309.0,87292.0,0.00844397]
[1745222662154,0.00213587,87309.0,87291.0,0.0461]
[1745222662590,0.00213587,87309.0,87291.0,0.05475046]
[1745222667236,0.00213587,87309.0,87291.0,0.05333705]
[1745222667556,0.00213587,87309.0,87291.0,0.05307943]
[1745222671216,0.00213587,87309.0,87292.0,0.0458]
[1745222671408,0.00213587,87309.0,87294.0,0.045]
[1745222671693,0.00213587,87309.0,87296.0,0.045]
[1745222671885,0.00213587,87309.0,87298.0,0.045]
[1745222673171,0.00213587,87309.0,87299.0,0.0458]
[1745222674418,0.00213587,87309.0,87299.0,0.04809074]
[1745222674620,0.00213587,87309.0,87300.0,0.045]
[1745222677853,0.00217587,87309.0,87300.0,0.045]
[1745222679391,1e-08,87309.0,87301.0,0.00229074]
[1745222679561,1e-08,87309.0,87302.0,0.0474]
[1745222679801,1e-08,87309.0,87304.0,0.0474]
[1745222679975,1e-08,87309.0,87306.0,0.0474]
[1745222682555,0.0004225,87328.0,87306.0,0.0474]
[1745222682766,0.00045262,87328.0,87309.0,0.048]
[1745222682903,0.00045262,87328.0,87311.0,0.0954]
[1745222683093,0.00045262,87328.0,87313.0,0.0474]
[1745222683284,0.00045262,87328.0,87306.0,0.001]
[1745222683491,0.00045262,87328.0,87307.0,0.00229032]
[1745222684192,0.09098681,87341.0,87307.0,0.00229032]
[1745222684392,0.11944791,87340.0,87307.0,0.00229032]
[1745222686252,0.11944791,87340.0,87308.0,0.0954]
[1745222686454,0.11944791,87340.0,87310.0,0.0474]
[1745222686661,0.11944791,87340.0,87311.0,0.00229032]
[1745222688949,0.11944791,87340.0,87312.0,0.04969032]
[1745222690992,0.0479,87339.0,87312.0,0.0474]
[1745222691196,0.11944791,87338.0,87312.0,0.0474]
[1745222692420,0.0495,87337.0,87294.0,0.27858728]
[1745222692564,0.0495,87334.0,87295.0,0.11944791]
[1745222692782,0.0479,87332.0,87296.0,0.00229058]
[1745222692986,0.11944791,87331.0,87297.0,0.00229058]
[1745222694668,0.0479,87332.0,87298.0,0.11944791]
[1745222694927,0.0479,87332.0,87299.0,0.00229033]
[1745222695107,0.0479,87332.0,87300.0,0.11944791]
[1745222695303,0.0479,87332.0,87301.0,0.00229032]
[1745222695533,0.0479,87332.0,87303.0,0.0972]
[1745222695690,0.0479,87332.0,87304.0,0.12173823]
[1745222698742,0.0479,87332.0,87305.0,0.0487]
[1745222699067,0.0479,87332.0,87305.0,0.16814791]
[1745222700715,0.11944791,87331.0,87303.0,0.02792487]
[1745222701078,0.0461,87330.0,87303.0,0.02792487]
[1745222701281,0.11944791,87329.0,87303.0,0.02792487]
[1745222702843,0.0913,87328.0,87291.0,0.00865046]
[1745222703053,0.0913,87326.0,87291.0,0.00865046]
[1745222703287,0.0913,87323.0,87291.0,0.00865046]
[1745222703440,0.0461,87320.0,87291.0,0.00865046]
[1745222703649,0.0461,87318.0,87291.0,0.00865046]
[1745222703845,0.0461,87315.0,87291.0,0.00865046]
[1745222704170,0.11944791,87314.0,87291.0,0.00865046]
[1745222704711,0.11944791,87314.0,87288.0,0.34]
[1745222704913,0.0461,87313.0,87288.0,0.34]
[1745222705245,0.0486,87311.0,87288.0,0.34]
[1745222705452,0.0486,87311.0,87288.0,0.34045262]
[1745222705453,0.11944791,87310.0,87288.0,0.34045262]
[1745222706691,0.11944791,87310.0,87288.0,0.34890217]
[1745222708750,0.11944791,87310.0,87289.0,0.00229085]
[1745222709692,0.11944791,87310.0,87288.0,0.34890217]
[1745222711896,0.11944791,87310.0,87289.0,0.00229085]
[1745222712719,0.10646791,87310.0,87289.0,0.00229085]
[1745222714801,0.10646791,87310.0,87290.0,0.0457]
[1745222715025,0.10646791,87310.0,87291.0,0.00229085]
[1745222717577,0.0452,87316.0,87292.0,0.0472]
[1745222717787,0.0452,87316.0,87293.0,0.00229061]
[1745222717959,0.02742326,87316.0,87293.0,0.00229061]
[1745222718619,0.01919327,87316.0,87293.0,0.00229061]
[1745222718963,1e-08,87316.0,87293.0,0.00229061]
[1745222719549,1e-08,87316.0,87294.0,0.0457]
[1745222719745,1e-08,87316.0,87296.0,0.0472]
[1745222719951,1e-08,87316.0,87297.0,0.12173835]
[1745222720747,1e-08,87326.0,87297.0,0.12173835]
[1745222720923,0.11944792,87326.0,87298.0,0.045]
[1745222721125,0.30491291,87328.0,87299.0,0.12173836]
[1745222721331,0.42436082,87328.0,87299.0,0.12173836]
[1745222722195,0.11944791,87328.0,87299.0,0.12173836]
[1745222722423,0.12044791,87328.0,87299.0,0.12173836]
[1745222722863,0.12044791,87328.0,87300.0,0.045]
[1745222723057,0.12044791,87328.0,87301.0,0.00229045]
[1745222723461,0.001,87328.0,87302.0,0.11944791]
[1745222730262,0.001,87328.0,87303.0,0.09596]
[1745222730472,0.001,87328.0,87304.0,0.11944791]
[1745222731064,0.0493,87332.0,87305.0,0.0927]
[1745222731357,0.16974791,87332.0,87305.0,0.0927]
[1745222735758,0.12044791,87332.0,87305.0,0.0927]
[1745222737896,0.11744781,87332.0,87305.0,0.0927]
[1745222738974,0.11744781,87332.0,87306.0,0.04789034]
[1745222743707,0.35121291,87342.0,87308.0,0.0925]
[1745222743978,0.35121291,87342.0,87310.0,0.0456]
[1745222743979,0.11944791,87341.0,87310.0,0.0456]
[1745222744155,0.11944791,87341.0,87311.0,0.11944791]
[1745222744362,0.11944791,87341.0,87312.0,0.0456]
[1745222748812,0.11944791,87341.0,87312.0,0.05417824]
[1745222760507,0.11944791,87341.0,87312.0,0.05417824]
[1745222764986,0.0463,87342.0,87313.0,0.12173808]
[1745222765203,0.16574791,87342.0,87313.0,0.12173808]
[1745222766383,0.09596,87355.0,87313.0,0.12173808]
[1745222766384,0.09596,87355.0,87314.0,0.0971]
[1745222766585,0.11944791,87351.0,87317.0,0.0477]
[1745222766794,0.11944791,87351.0,87319.0,0.0477]
[1745222767016,0.11944791,87351.0,87321.0,0.0477]
[1745222767354,0.11944791,87351.0,87323.0,0.0477]
[1745222767559,0.11944791,87351.0,87324.0,0.00228995]
[1745222767770,0.30491291,87362.0,87326.0,0.0477]
[1745222767883,0.30491291,87362.0,87328.0,0.0477]
[1745222768089,0.11944791,87361.0,87330.0,0.0477]
[1745222768361,0.11944791,87361.0,87331.0,0.04998966]
[1745222768893,0.11944791,87361.0,87333.0,0.0477]
[1745222769139,0.11944791,87361.0,87334.0,0.00228966]
[1745222769895,0.11944791,87361.0,87335.0,0.0477]
[1745222770095,0.11944791,87361.0,87336.0,0.00228966]
[1745222771748,0.11944791,87361.0,87338.0,0.0494]
[1745222771952,0.11944791,87361.0,87340.0,0.0477]
[1745222772758,0.0475,87369.0,87341.0,0.00228966]
[1745222773124,0.002,87369.0,87342.0,0.55130532]
[1745222773328,0.002,87369.0,87344.0,0.0971]
[1745222773507,0.0461,87384.0,87348.0,0.0477]
[1745222773735,0.0461,87384.0,87347.0,0.0494]
[1745222773736,0.11944791,87383.0,87350.0,0.0477]
[1745222773940,0.11944791,87383.0,87351.0,0.00228928]
[1745222774148,0.11944791,87383.0,87352.0,0.0477]
[1745222774347,0.11944791,87383.0,87353.0,0.00228925]
[1745222774549,0.11944791,87383.0,87352.0,0.0477]
[1745222775131,0.11958359,87383.0,87352.0,0.0477]
[1745222775529,0.11958359,87383.0,87353.0,0.0022892]
[1745222776130,0.11962359,87383.0,87353.0,0.0022892]
[1745222776903,0.11966359,87383.0,87353.0,0.0022892]
[1745222777112,0.11966359,87383.0,87352.0,0.0477]
[1745222777305,0.11966359,87383.0,87347.0,0.10519349]
[1745222777306,0.0469,87382.0,87347.0,0.10519349]
[1745222777532,0.16634791,87381.0,87347.0,0.10519349]
[1745222777749,0.0469,87380.0,87347.0,0.10519349]
[1745222777981,0.11944791,87379.0,87347.0,0.10519349]
[1745222778217,0.0469,87378.0,87347.0,0.10519349]
[1745222778427,0.11944791,87377.0,87347.0,0.10519349]
[1745222781009,0.11944791,87377.0,87318.0,0.001]
[1745222781010,0.11944791,87377.0,87344.0,0.09592]
[1745222781161,0.11944791,87377.0,87344.0,0.21536791]
[1745222781955,0.11948791,87377.0,87344.0,0.21536791]
[1745222782404,0.11948791,87377.0,87343.0,0.09592]
[1745222782973,0.0452,87376.0,87343.0,0.09592]
[1745222783175,0.11944791,87375.0,87343.0,0.09592]
[1745222784038,0.11944791,87375.0,87345.0,0.0482]
[1745222784220,0.11944791,87375.0,87345.0,0.0382]
[1745222785562,0.11948791,87375.0,87345.0,0.0382]
[1745222787055,0.0928,87374.0,87345.0,0.0382]
[1745222787224,0.11944791,87373.0,87345.0,0.0382]
[1745222790969,0.11948791,87373.0,87345.0,0.0382]
[1745222793837,0.0452,87372.0,87344.0,0.09592]
[1745222793987,0.11948791,87373.0,87332.0,0.25475675]
[1745222793988,0.0928,87369.0,87341.0,0.01668843]
[1745222794188,0.11944791,87368.0,87332.0,0.16289934]
[1745222794410,0.0928,87356.0,87332.0,0.00854897]
[1745222794617,0.0452,87353.0,87328.0,0.11243269]
[1745222794823,0.0452,87351.0,87328.0,0.11243269]
[1745222795044,0.0452,87349.0,87328.0,0.11243269]
[1745222795292,0.11944791,87348.0,87328.0,0.11243269]
[1745222795445,0.11944791,87348.0,87328.0,0.01651269]
[1745222795636,0.11944791,87348.0,87328.0,0.00013573]
[1745222796177,0.11944791,87348.0,87328.0,0.00891065]
[1745222796726,0.11948791,87348.0,87328.0,0.00891065]
[1745222797927,0.11948791,87348.0,87328.0,0.02533129]
[1745222800563,0.0498,87347.0,87328.0,0.02533129]
[1745222800744,0.11944791,87346.0,87328.0,0.02533129]
[1745222801347,0.0959,87345.0,87328.0,0.02533129]
[1745222801554,0.0498,87343.0,87328.0,0.02533129]
[1745222801770,0.11944791,87342.0,87328.0,0.02533129]
[1745222803558,0.11948791,87342.0,87328.0,0.02533129]
[1745222808907,0.11952791,87342.0,87328.0,0.02533129]
[1745222811311,0.11202791,87342.0,87328.0,0.02533129]
[1745222811513,0.10154791,87342.0,87328.0,0.02533129]
[1745222811870,8e-05,87342.0,87328.0,0.02533129]
[1745222813423,0.01607194,87361.0,87329.0,0.04738998]
[1745222813591,0.11944791,87360.0,87329.0,0.04738998]
[1745222813790,0.11944791,87360.0,87330.0,0.0451]
[1745222814178,0.11944791,87360.0,87332.0,0.0904]
[1745222814379,0.30491291,87366.0,87333.0,0.50454791]
[1745222814654,0.11944791,87365.0,87333.0,0.50454791]
[1745222815609,0.11944791,87365.0,87334.0,0.0451]
[1745222815827,0.11944791,87365.0,87335.0,0.11944791]
[1745222817227,0.11944791,87365.0,87336.0,0.0451]
[1745222820717,0.11944791,87365.0,87337.0,0.0453]
[1745222820928,0.11944791,87365.0,87338.0,0.0451]
[1745222821360,0.11944791,87365.0,87339.0,0.00228946]
[1745222821500,0.11944791,87365.0,87341.0,0.0451]
[1745222822971,0.0483,87374.0,87343.0,0.0451]
[1745222823143,0.0483,87374.0,87342.0,0.0453]
[1745222823144,0.11944791,87372.0,87345.0,0.0451]
[1745222823381,0.11944791,87372.0,87346.0,0.00228941]
[1745222824303,0.11944791,87372.0,87345.0,0.0451]
[1745222824449,0.11944791,87372.0,87346.0,0.00228941]
[1745222824678,0.11944791,87372.0,87345.0,0.0451]
[1745222824889,0.11944791,87372.0,87346.0,0.00228941]
[1745222825090,0.11944791,87372.0,87345.0,0.0451]
[1745222836291,0.0489,87371.0,87345.0,0.0451]
[1745222836506,0.11944791,87370.0,87345.0,0.0451]
[1745222842270,0.00228973,87369.0,87335.0,0.09588]
[1745222842421,0.11944791,87368.0,87336.0,0.00228965]
[1745222842623,0.00228973,87367.0,87336.0,0.00228965]
[1745222842837,0.11944791,87366.0,87335.0,0.09588]
[1745222843037,0.00228973,87365.0,87336.0,0.09588]
[1745222843243,0.11944791,87364.0,87336.0,0.09588]
[1745222843581,0.00228973,87363.0,87336.0,0.09588]
[1745222843875,0.11944791,87362.0,87336.0,0.09588]
[1745222844179,0.00228973,87361.0,87336.0,0.09588]
[1745222845208,0.00228973,87361.0,87337.0,0.098]
[1745222845362,0.00228973,87361.0,87338.0,0.0493]
[1745222849563,0.11944791,87362.0,87338.0,0.0493]
[1745222849758,0.10886791,87362.0,87338.0,0.0493]
[1745222851131,0.10886791,87362.0,87339.0,0.00228955]
[1745222851326,0.10886791,87362.0,87338.0,0.3893]
[1745222855171,0.09745792,87362.0,87338.0,0.0493]
[1745222857853,0.0481,87367.0,87338.0,0.0493]
[1745222858048,0.11944791,87366.0,87338.0,0.0493]
[1745222864043,0.10450792,87366.0,87339.0,0.00228956]
[1745222864251,0.10450792,87366.0,87338.0,0.0493]
[1745222870701,0.10450792,87366.0,87329.0,0.20005037]
[1745222870702,0.0492,87365.0,87329.0,0.20005037]
[1745222870901,0.14831569,87360.0,87329.0,0.15435037]
[1745222871104,0.0953,87357.0,87329.0,0.15435037]
[1745222871397,0.0491,87355.0,87330.0,0.34]
[1745222871678,0.0491,87353.0,87330.0,0.34]
[1745222871921,0.11944791,87352.0,87328.0,0.02533129]
[1745222872111,0.0491,87350.0,87328.0,0.02533129]
[1745222872311,0.11944791,87349.0,87328.0,0.02533129]
[1745222872519,0.0491,87348.0,87328.0,0.02533129]
[1745222872698,0.11944791,87347.0,87328.0,0.02533129]
[1745222873062,0.0491,87348.0,87329.0,0.00229005]
[1745222873465,0.0491,87348.0,87328.0,0.02533129]
[1745222877714,0.14831569,87370.0,87328.0,0.02533129]
[1745222877715,0.09584,87370.0,87330.0,0.0473]
[1745222877877,0.11944791,87369.0,87332.0,0.0473]
[1745222878081,0.11944791,87369.0,87333.0,0.11944791]
[1745222879443,0.11944791,87369.0,87334.0,0.0473]
[1745222879629,0.048,87368.0,87329.0,0.01454085]
[1745222879831,0.11944791,87367.0,87330.0,0.11944791]
[1745222880037,0.11944791,87367.0,87331.0,0.09584]
[1745222880282,0.11944791,87367.0,87332.0,0.11944791]
[1745222882709,0.11944791,87367.0,87333.0,0.0947]
[1745222882910,0.11944791,87367.0,87333.0,0.21414791]
[1745222887230,0.11944791,87367.0,87334.0,0.09584]
[1745222888658,0.0463,87366.0,87334.0,0.09584]
[1745222888887,0.11944791,87365.0,87334.0,0.09584]
[1745222891492,0.09734792,87365.0,87334.0,0.21528791]
[1745222896299,0.0463,87366.0,87336.0,0.01454085]
[1745222896469,0.03883,87366.0,87337.0,0.05038938]
[1745222896601,0.03883,87366.0,87338.0,0.34]
[1745222896802,0.0482,87369.0,87341.0,0.0467]
[1745222897054,4e-05,87375.0,87341.0,0.0467]
[1745222897055,4e-05,87375.0,87343.0,0.34]
[1745222897268,0.11948791,87373.0,87345.0,0.34]
[1745222897464,0.11948791,87373.0,87346.0,0.00228935]
[1745222897877,0.11948791,87373.0,87347.0,0.0472]
[1745222898086,4e-05,87375.0,87349.0,0.34]
[1745222898285,0.10025639,87374.0,87349.0,0.34]
[1745222898456,4e-05,87375.0,87351.0,0.34]
[1745222898664,4e-05,87375.0,87350.0,0.16614791]
[1745222898665,4e-05,87375.0,87353.0,0.34]
[1745222898866,4e-05,87375.0,87355.0,0.34]
[1745222899079,4e-05,87375.0,87357.0,0.34]
[1745222899284,4e-05,87375.0,87358.0,0.00228913]
[1745222899482,0.23792098,87382.0,87358.0,0.00228913]
[1745222899666,0.27410299,87382.0,87358.0,0.00228913]
[1745222900073,0.17400332,87382.0,87358.0,0.00228913]
[1745222900274,0.17400332,87382.0,87359.0,0.0467]
[1745222900463,0.17400332,87382.0,87360.0,0.00228909]
[1745222900663,0.17248696,87382.0,87360.0,0.00228909]
[1745222901111,0.00013571,87382.0,87360.0,0.00228909]
[1745222901831,0.00013571,87382.0,87360.0,0.121737]
[1745222902300,0.09181742,87389.0,87361.0,0.0462]
[1745222902504,0.10026288,87388.0,87362.0,0.00228903]
[1745222902871,0.10026288,87388.0,87361.0,0.0462]
[1745222903084,0.10026288,87388.0,87361.0,0.3862]
[1745222905201,0.14766288,87388.0,87361.0,0.3862]
[1745222905891,0.10026288,87388.0,87361.0,0.34]
[1745222906038,0.18915741,87379.0,87346.0,0.0467]
[1745222906240,0.11944791,87378.0,87346.0,0.0467]
[1745222907119,0.11944791,87378.0,87346.0,0.05533299]
[1745222916978,0.045,87376.0,87346.0,0.00863299]
[1745222917104,0.0472,87372.0,87335.0,0.0467]
[1745222917334,0.0472,87370.0,87335.0,0.0467]
[1745222917643,0.0472,87368.0,87335.0,0.0467]
[1745222917851,0.0472,87366.0,87335.0,0.0467]
[1745222918054,0.11944791,87365.0,87335.0,0.0467]
[1745222918399,0.11944791,87365.0,87335.0,0.04898978]
[1745222920387,0.11944791,87365.0,87335.0,0.0574036]
[1745222921634,0.11944791,87365.0,87335.0,0.39511382]
[1745222923778,0.11944791,87365.0,87337.0,0.34]
[1745222923979,0.0472,87366.0,87339.0,0.34]
[1745222924186,0.0472,87366.0,87341.0,0.34]
[1745222924316,0.0472,87366.0,87343.0,0.0467]
[1745222924709,0.0472,87366.0,87344.0,0.00228948]
[1745222925604,0.17235125,87370.0,87345.0,0.0478]
[1745222925751,0.29179916,87370.0,87346.0,0.00228948]
[1745222927539,0.11944791,87370.0,87346.0,0.00228948]
[1745222931691,0.11581615,87370.0,87346.0,0.00228948]
[1745222932353,0.11581615,87370.0,87347.0,0.0467]
[1745222932487,0.11585615,87370.0,87347.0,0.0467]
[1745222933612,8e-05,87370.0,87347.0,0.0467]
[1745222934059,0.00012,87370.0,87347.0,0.0467]
[1745222936171,0.00012,87370.0,87347.0,0.04898947]
[1745222937200,0.00012,87370.0,87348.0,0.11944791]
[1745222937927,0.0472,87376.0,87348.0,0.11944791]
[1745222938143,0.0282,87376.0,87348.0,0.11944791]
[1745222938358,0.13685741,87379.0,87349.0,0.0467]
[1745222938614,0.11944791,87378.0,87349.0,0.16614791]
[1745222939027,0.13685741,87379.0,87350.0,0.11944791]
[1745222939269,0.25630532,87379.0,87350.0,0.11944791]
[1745222939483,0.25630532,87379.0,87351.0,0.00228935]
[1745222939648,0.25630532,87379.0,87352.0,0.11944791]
[1745222940344,0.25630532,87379.0,87353.0,0.0467]
[1745222941117,0.16444791,87379.0,87353.0,0.0467]
[1745222944132,0.16448791,87379.0,87353.0,0.0467]
[1745222944336,0.11948791,87379.0,87354.0,0.0478]
[1745222945044,0.11952791,87379.0,87354.0,0.0478]
[1745222945253,0.11956791,87379.0,87354.0,0.0478]
[1745222948461,0.11956791,87379.0,87355.0,0.0486]
[1745222953435,0.11944791,87378.0,87342.0,0.0958]
[1745222953754,0.11944791,87378.0,87343.0,0.11944791]
[1745222956557,0.11944791,87378.0,87345.0,0.0486]
[1745222956788,0.11944791,87378.0,87347.0,0.0486]
[1745222957000,0.11944791,87378.0,87349.0,0.0486]
[1745222962425,0.11944791,87378.0,87349.0,0.16804791]
[1745222962602,0.11944791,87378.0,87350.0,0.00228934]
[1745222962743,0.11944791,87378.0,87349.0,0.16804791]
[1745222963406,0.11936586,87378.0,87349.0,0.16804791]
[1745222963609,0.1193451,87378.0,87349.0,0.16804791]
[1745222964420,0.1193451,87378.0,87344.0,0.0938]
[1745222964421,0.0497,87376.0,87344.0,0.0938]
[1745222964624,0.0497,87374.0,87344.0,0.0938]
[1745222964821,0.09197741,87379.0,87339.0,0.0465]
[1745222964822,0.0497,87372.0,87339.0,0.0465]
[1745222964996,0.11944791,87371.0,87339.0,0.0465]
[1745222965202,0.0497,87370.0,87339.0,0.0465]
[1745222965376,0.11944791,87369.0,87339.0,0.0465]
[1745222965579,0.0497,87370.0,87340.0,0.12173762]
[1745222965804,0.11944791,87369.0,87340.0,0.12173762]
[1745222966368,0.11944791,87369.0,87340.0,0.11944791]
[1745222972532,0.11944791,87369.0,87341.0,0.00228951]
[1745222972667,0.0497,87370.0,87342.0,0.11944791]
[1745222972864,0.16914791,87370.0,87344.0,0.0482]
[1745222973129,0.16914791,87370.0,87345.0,0.00228951]
[1745222974412,0.11944791,87370.0,87345.0,0.00228951]
[1745222974612,0.11944791,87370.0,87346.0,0.0489]
[1745222974825,0.11944791,87370.0,87347.0,0.0482]
[1745222975171,0.0465,87373.0,87348.0,0.00228951]
[1745222975573,0.0465,87373.0,87348.0,0.12173742]
[1745222977085,0.0465,87373.0,87348.0,0.11944791]
[1745222978368,0.00012,87379.0,87350.0,0.0482]
[1745222978687,0.11944791,87378.0,87353.0,0.0482]
[1745222978914,0.11944791,87378.0,87353.0,0.05048931]
[1745222980298,0.00012,87379.0,87354.0,0.11944791]
[1745222982337,0.00012,87379.0,87355.0,0.0022892]
[1745222982564,0.00012,87379.0,87356.0,0.0482]
[1745222986259,0.00012,87379.0,87339.0,0.01454085]
[1745222986466,0.11944791,87378.0,87341.0,0.01454085]
[1745222986667,0.11944791,87378.0,87342.0,0.11944791]
[1745222989392,0.11944791,87378.0,87344.0,0.0482]
[1745222989610,0.11944791,87378.0,87346.0,0.0482]
[1745222989808,0.11944791,87378.0,87347.0,0.11944791]
[1745222992620,0.0487,87377.0,87347.0,0.11944791]
[1745222992824,0.16814791,87377.0,87347.0,0.11944791]
[1745222995232,0.16814791,87377.0,87347.0,0.21516791]
[1745222997849,0.16230791,87377.0,87347.0,0.21516791]
[1745222998268,0.14340816,87377.0,87347.0,0.21516791]
[1745222998481,0.14340816,87377.0,87348.0,0.0022892]
[1745222998688,0.12784816,87377.0,87350.0,0.0476]
[1745222998876,0.11784816,87377.0,87351.0,0.0022892]
[1745222999427,0.31377125,87388.0,87353.0,0.34]
[1745222999647,0.11944791,87387.0,87354.0,0.12173707]
[1745222999853,0.11944791,87387.0,87355.0,0.34]
[1745223000071,0.11944791,87387.0,87357.0,0.34]
[1745223000428,0.11944791,87387.0,87358.0,0.09788909]
[1745223002493,0.11944791,87387.0,87359.0,0.11944791]
[1745223002689,0.11944791,87387.0,87360.0,0.00228901]
[1745223003932,0.11307791,87387.0,87360.0,0.00228901]
[1745223004139,0.11307791,87387.0,87361.0,0.0476]
[1745223004333,0.11307791,87387.0,87362.0,0.00228901]
[1745223005099,0.0457,87388.0,87363.0,0.16704791]
[1745223005294,0.02076,87388.0,87363.0,0.16704791]
[1745223005519,0.0001087,87389.0,87363.0,0.16704791]
[1745223005722,0.0497,87394.0,87363.0,0.16704791]
[1745223005924,0.14214791,87394.0,87364.0,0.0476]
[1745223006125,0.14214791,87394.0,87365.0,0.16704791]
[1745223006356,0.002,87399.0,87367.0,0.0476]
[1745223006571,0.12106632,87395.0,87368.0,0.12173673]
[1745223007149,0.12106632,87395.0,87368.0,0.11944791]
[1745223007532,0.12106632,87395.0,87369.0,0.0956]
[1745223009274,0.12106632,87395.0,87369.0,0.4356]
[1745223010394,0.12106632,87395.0,87370.0,0.3899]
[1745223011407,0.01908872,87398.0,87372.0,0.34]
[1745223011541,0.01908872,87398.0,87372.0,0.45944791]
[1745223011942,0.01408872,87398.0,87372.0,0.45944791]
[1745223012400,0.002,87399.0,87373.0,0.0499]
[1745223014857,0.002,87399.0,87374.0,0.0472]
[1745223015068,0.002,87399.0,87375.0,0.0499]
[1745223017997,0.11944791,87398.0,87375.0,0.0499]
[1745223018211,0.0971,87397.0,87375.0,0.0499]
[1745223018343,0.11944791,87396.0,87375.0,0.0499]
[1745223022386,0.11948791,87396.0,87375.0,0.0499]
[1745223029234,4e-05,87396.0,87375.0,0.0499]
[1745223031585,0.11944791,87395.0,87375.0,0.0499]
[1745223031790,0.11944791,87395.0,87374.0,0.0472]
[1745223031985,0.0483,87394.0,87370.0,0.0451]
[1745223032195,0.11944791,87393.0,87365.0,0.0451]
[1745223032981,0.17235125,87392.0,87365.0,0.0451]
[1745223033189,0.14816665,87390.0,87365.0,0.0451]
[1745223033384,0.21512791,87389.0,87360.0,0.0451]
[1745223034285,0.09568,87388.0,87360.0,0.0451]
[1745223034619,0.11944791,87387.0,87360.0,0.0451]
[1745223034987,0.09568,87386.0,87360.0,0.0451]
[1745223035219,0.11944791,87385.0,87360.0,0.0451]
[1745223038870,0.17235125,87384.0,87360.0,0.0451]
[1745223039102,0.11944791,87383.0,87360.0,0.0451]
[1745223039725,0.17235125,87384.0,87365.0,0.0498]
[1745223039970,0.09572,87396.0,87368.0,0.0469]
[1745223040162,0.09572,87396.0,87370.0,0.0498]